fUSD/lending_fUSD_20260616
["ID","MTS","AMOUNT","RATE_DAILY","PERIOD"]
[425145280,1781548302000,-152.0,0.0003797,30]
[425145261,1781548302000,-1000.0,0.0003797,30]
[425145236,1781548302000,-194.72792766,0.00037945,47]
[425145264,1781548302000,-187.78006524,0.0003797,30]
[425145237,1781548302000,-1112.1608346,0.00037945,47]
[425145249,1781548302000,-151.0,0.00037945,47]
[425145242,1781548302000,-500.0,0.00037945,47]
[425145241,1781548302000,-200.0,0.00037945,47]
[425145250,1781548302000,-151.0,0.00037945,47]
[425145246,1781548302000,-670.58624095,0.00037945,47]
[425145240,1781548302000,-155.04060098,0.00037945,47]
[425145244,1781548302000,-151.0,0.00037945,47]
[425145243,1781548302000,-151.0,0.00037945,47]
[425145247,1781548302000,-194.72792766,0.00037945,47]
[425145248,1781548302000,-194.72792766,0.00037945,47]
[425145245,1781548302000,-500.0,0.00037945,47]
[425145257,1781548302000,-334.12,0.00037967,60]
[425145260,1781548302000,-166.67896332,0.0003797,30]
[425145256,1781548302000,-216.51,0.00037962,60]
[425145232,1781548302000,-1000.0,0.00037945,46]
[425145255,1781548302000,-150.0,0.00037949,120]
[425145251,1781548302000,-194.72792766,0.00037945,47]
[425145258,1781548302000,-163.19,0.00037969,60]
[425145259,1781548302000,-500.0,0.0003797,30]
[425145254,1781548302000,-150.0,0.00037948,120]
[425145253,1781548302000,-847.0,0.00037947,3]
[425145262,1781548302000,-151.28403746,0.0003797,30]
[425145252,1781548302000,-152.0,0.00037945,47]
[425145330,1781548303000,-155.04060098,0.00038048,30]
[425145331,1781548303000,-200.0,0.00038048,30]
[425145334,1781548303000,-500.0,0.00038048,30]
[425145336,1781548303000,-151.0,0.00038048,30]
[425145337,1781548303000,-181.08010149,0.00038048,30]
[425145321,1781548303000,-667.20112316,0.00038048,30]
[425145328,1781548303000,-1112.1608346,0.00038048,30]
[425145326,1781548303000,-181.08010149,0.00038048,30]
[425145322,1781548303000,-166.67896326,0.00038048,30]
[425145332,1781548303000,-500.0,0.00038048,30]
[425145317,1781548303000,-163.19,0.00038019,60]
[425145329,1781548303000,-181.08010149,0.00038048,30]
[425145327,1781548303000,-154.67963625,0.00038048,30]
[425145348,1781548303000,-163.19,0.00038069,60]
[425145335,1781548303000,-623.58710447,0.00038048,30]
[425145349,1781548303000,-5000.0,0.00038069,7]
[425145339,1781548303000,-181.08010149,0.00038048,30]
[425145350,1781548303000,-587.03642245,0.00038071,60]
[425145340,1781548303000,-151.0,0.00038048,30]
[425145341,1781548303000,-181.08010149,0.00038048,30]
[425145338,1781548303000,-151.0,0.00038048,30]
[425145342,1781548303000,-152.0,0.00038048,30]
[425145344,1781548303000,-150.0,0.0003806,120]
[425145347,1781548303000,-334.12,0.00038067,60]
[425145345,1781548303000,-216.51,0.00038062,60]
[425145343,1781548303000,-150.0,0.00038052,120]
[425145323,1781548303000,-1000.0,0.00038048,30]
[425145346,1781548303000,-150.0,0.00038066,120]
[425145333,1781548303000,-151.0,0.00038048,30]
[425145318,1781548303000,-501.0,0.00038021,13]
[425145293,1781548303000,-800.0,0.00038,7]
[425145315,1781548303000,-150.0,0.00038014,120]
[425145359,1781548303000,-198.66,0.00038108,120]
[425145298,1781548303000,-6168.01122577,0.00038,5]
[425145299,1781548303000,-62282.9697165,0.00038,5]
[425145294,1781548303000,-404.27103176,0.00038,2]
[425145291,1781548303000,-800.0,0.00038,7]
[425145295,1781548303000,-19515.17161674,0.00038,10]
[425145297,1781548303000,-236.53029111,0.00038,5]
[425145296,1781548303000,-1529.19064053,0.00038,5]
[425145292,1781548303000,-800.0,0.00038,7]
[425145300,1781548303000,-500.0,0.00038,120]
[425145304,1781548303000,-1000.0,0.00038,120]
[425145303,1781548303000,-153.0,0.00038,120]
[425145307,1781548303000,-395.8404819,0.00038,120]
[425145319,1781548303000,-150.0,0.00038047,120]
[425145308,1781548303000,-700.29090019,0.00038,120]
[425145309,1781548303000,-719.24517055,0.00038,30]
[425145312,1781548303000,-1377.83773931,0.00038,120]
[425145305,1781548303000,-500.0,0.00038,120]
[425145301,1781548303000,-1000.0,0.00038,2]
[425145302,1781548303000,-152.0,0.00038,120]
[425145310,1781548303000,-510.25628735,0.00038,120]
[425145311,1781548303000,-1070.19643361,0.00038,120]
[425145314,1781548303000,-216.51,0.00038012,60]
[425145316,1781548303000,-334.12,0.00038017,60]
[425145313,1781548303000,-150.0,0.00038005,120]
[425145320,1781548303000,-500.0,0.00038048,30]
[425145324,1781548303000,-151.28403746,0.00038048,30]
[425145325,1781548303000,-151.0,0.00038048,30]
[425145306,1781548303000,-310.68252322,0.00038,120]
[425145356,1781548303000,-1000.0,0.000381,2]
[425145390,1781548303000,-216.51,0.00038162,60]
[425145360,1781548303000,-2000.0,0.00038108,120]
[425145386,1781548303000,-319.72,0.00038139,120]
[425145399,1781548303000,-500.0,0.00038162,120]
[425145397,1781548303000,-500.0,0.00038162,120]
[425145398,1781548303000,-500.0,0.00038162,120]
[425145396,1781548303000,-500.0,0.00038162,120]
[425145400,1781548303000,-500.0,0.00038162,120]
[425145401,1781548303000,-500.0,0.00038162,120]
[425145394,1781548303000,-500.0,0.00038162,120]
[425145395,1781548303000,-500.0,0.00038162,120]
[425145389,1781548303000,-2203.77432853,0.00038159,120]
[425145392,1781548303000,-500.0,0.00038162,120]
[425145391,1781548303000,-157.14013388,0.00038162,120]
[425145404,1781548303000,-500.0,0.00038162,120]
[425145382,1781548303000,-1080.07,0.00038139,120]
[425145402,1781548303000,-500.0,0.00038162,120]
[425145413,1781548303000,-500.0,0.00038162,120]
[425145412,1781548303000,-500.0,0.00038162,120]
[425145406,1781548303000,-500.0,0.00038162,120]
[425145408,1781548303000,-500.0,0.00038162,120]
[425145403,1781548303000,-500.0,0.00038162,120]
[425145410,1781548303000,-500.0,0.00038162,120]
[425145405,1781548303000,-500.0,0.00038162,120]
[425145407,1781548303000,-500.0,0.00038162,120]
[425145411,1781548303000,-500.0,0.00038162,120]
[425145414,1781548303000,-500.0,0.00038162,120]
[425145416,1781548303000,-565.67202507,0.00038162,120]
[425145415,1781548303000,-500.0,0.00038162,120]
[425145357,1781548303000,-1996.71,0.00038106,5]
[425145409,1781548303000,-500.0,0.00038162,120]
[425145381,1781548303000,-222.77255213,0.00038137,30]
[425145393,1781548303000,-500.0,0.00038162,120]
[425145385,1781548303000,-213.14,0.00038139,30]
[425145383,1781548303000,-589.12,0.00038139,30]
[425145353,1781548303000,-170.99187676,0.00038092,120]
[425145363,1781548303000,-244.62,0.00038108,120]
[425145351,1781548303000,-5000.0,0.00038081,7]
[425145358,1781548303000,-37131.9,0.00038108,13]
[425145354,1781548303000,-4047.29,0.00038094,7]
[425145361,1781548303000,-813.13,0.00038108,120]
[425145352,1781548303000,-260.31,0.0003809,93]
[425145362,1781548303000,-1233.94,0.00038108,120]
[425145375,1781548303000,-477.54599083,0.00038131,120]
[425145365,1781548303000,-460.59,0.00038108,120]
[425145369,1781548303000,-216.51,0.00038112,60]
[425145367,1781548303000,-943.0,0.00038108,120]
[425145368,1781548303000,-436.48,0.00038108,120]
[425145364,1781548303000,-2000.0,0.00038108,120]
[425145355,1781548303000,-362.85262543,0.000381,33]
[425145379,1781548303000,-222.77255212,0.00038137,30]
[425145384,1781548303000,-196.37,0.00038139,7]
[425145378,1781548303000,-171.2,0.00038131,2]
[425145387,1781548303000,-249.56285894,0.00038143,2]
[425145366,1781548303000,-150.02,0.00038108,120]
[425145380,1781548303000,-222.77255212,0.00038137,30]
[425145377,1781548303000,-158.24410207,0.00038131,2]
[425145388,1781548303000,-1769.22720953,0.00038152,60]
[425145370,1781548303000,-1336.35,0.00038114,7]
[425145372,1781548303000,-163.19,0.00038119,60]
[425145371,1781548303000,-334.12,0.00038117,60]
[425145374,1781548303000,-7098.67862995,0.00038129,120]
[425145373,1781548303000,-564.3,0.00038125,30]
[425145376,1781548303000,-435.53,0.00038131,10]
[425145457,1781548304000,-151.0,0.00038163,49]
[425145460,1781548304000,-156.587,0.00038163,50]
[425145459,1781548304000,-154.67963625,0.00038163,50]
[425145463,1781548304000,-151.28403746,0.00038163,48]
[425145458,1781548304000,-1112.1608346,0.00038163,50]
[425145445,1781548304000,-157.29309396,0.00038163,51]
[425145454,1781548304000,-157.29309396,0.00038163,49]
[425145464,1781548304000,-151.0,0.00038163,48]
[425145453,1781548304000,-154.67963625,0.00038163,51]
[425145447,1781548304000,-157.29309396,0.00038163,50]
[425145448,1781548304000,-151.28403746,0.00038163,50]
[425145455,1781548304000,-151.28403746,0.00038163,49]
[425145465,1781548304000,-1112.1608346,0.00038163,49]
[425145456,1781548304000,-156.587,0.00038163,50]
[425145470,1781548304000,-151.0,0.00038163,30]
[425145461,1781548304000,-157.29309396,0.00038163,48]
[425145466,1781548304000,-154.67963625,0.00038163,49]
[425145478,1781548304000,-155.04060098,0.00038163,50]
[425145469,1781548304000,-162.380719,0.00038163,49]
[425145477,1781548304000,-154.67963625,0.00038163,30]
[425145472,1781548304000,-154.67963625,0.00038163,48]
[425145467,1781548304000,-168.3888056,0.00038163,48]
[425145468,1781548304000,-151.28403746,0.00038163,30]
[425145471,1781548304000,-1112.1608346,0.00038163,48]
[425145473,1781548304000,-174.61919141,0.00038163,30]
[425145475,1781548304000,-168.3888056,0.00038163,48]
[425145474,1781548304000,-155.04060098,0.00038163,51]
[425145476,1781548304000,-1112.1608346,0.00038163,30]
[425145462,1781548304000,-162.380719,0.00038163,49]
[425145446,1781548304000,-151.0,0.00038163,51]
[425145426,1781548304000,-160.0,0.00038163,51]
[425145443,1781548304000,-1000.0,0.00038163,30]
[425145417,1781548304000,-157.14013388,0.00038162,120]
[425145425,1781548304000,-163.01335507,0.00038163,51]
[425145419,1781548304000,-500.0,0.00038163,50]
[425145418,1781548304000,-500.0,0.00038163,51]
[425145420,1781548304000,-500.0,0.00038163,49]
[425145423,1781548304000,-2017.10229327,0.00038163,30]
[425145422,1781548304000,-500.0,0.00038163,30]
[425145421,1781548304000,-500.0,0.00038163,48]
[425145424,1781548304000,-423.32392287,0.00038163,51]
[425145428,1781548304000,-191.69631648,0.00038163,49]
[425145439,1781548304000,-1000.0,0.00038163,48]
[425145438,1781548304000,-557.5788265,0.00038163,48]
[425145429,1781548304000,-1000.0,0.00038163,51]
[425145433,1781548304000,-1000.0,0.00038163,50]
[425145434,1781548304000,-166.67896326,0.00038163,50]
[425145437,1781548304000,-166.67896326,0.00038163,49]
[425145427,1781548304000,-160.0,0.00038163,50]
[425145435,1781548304000,-537.6845,0.00038163,49]
[425145430,1781548304000,-500.0,0.00038163,51]
[425145431,1781548304000,-166.67896326,0.00038163,51]
[425145432,1781548304000,-518.5,0.00038163,50]
[425145436,1781548304000,-1000.0,0.00038163,49]
[425145449,1781548304000,-151.0,0.00038163,51]
[425145441,1781548304000,-578.20924308,0.00038163,30]
[425145451,1781548304000,-151.0,0.00038163,50]
[425145452,1781548304000,-1112.1608346,0.00038163,51]
[425145450,1781548304000,-151.0,0.00038163,51]
[425145440,1781548304000,-166.67896326,0.00038163,48]
[425145442,1781548304000,-166.67896326,0.00038163,30]
[425145444,1781548304000,-151.28403746,0.00038163,51]
[425145485,1781548304000,-500.0,0.00038163,51]
[425145487,1781548304000,-151.0,0.00038163,51]
[425145479,1781548304000,-174.61919141,0.00038163,30]
[425145510,1781548304000,-151.0,0.00038163,50]
[425145528,1781548304000,-162.380719,0.00038163,49]
[425145518,1781548304000,-151.0,0.00038163,50]
[425145519,1781548304000,-200.0,0.00038163,30]
[425145517,1781548304000,-500.0,0.00038163,30]
[425145529,1781548304000,-156.587,0.00038163,50]
[425145520,1781548304000,-162.380719,0.00038163,49]
[425145522,1781548304000,-500.0,0.00038163,48]
[425145524,1781548304000,-168.3888056,0.00038163,48]
[425145521,1781548304000,-151.0,0.00038163,48]
[425145523,1781548304000,-579.88197956,0.00038163,48]
[425145526,1781548304000,-151.0,0.00038163,48]
[425145525,1781548304000,-151.0,0.00038163,49]
[425145527,1781548304000,-557.5788265,0.00038163,48]
[425145530,1781548304000,-152.0,0.00038163,51]
[425145537,1781548304000,-151.0,0.00038163,30]
[425145542,1781548304000,-174.61919141,0.00038163,30]
[425145541,1781548304000,-151.0,0.00038163,48]
[425145540,1781548304000,-152.0,0.00038163,50]
[425145531,1781548304000,-168.3888056,0.00038163,48]
[425145535,1781548304000,-601.3376128,0.00038163,30]
[425145538,1781548304000,-168.3888056,0.00038163,48]
[425145533,1781548304000,-151.0,0.00038163,49]
[425145532,1781548304000,-151.0,0.00038163,30]
[425145534,1781548304000,-500.0,0.00038163,30]
[425145536,1781548304000,-151.0,0.00038163,48]
[425145539,1781548304000,-162.380719,0.00038163,49]
[425145544,1781548304000,-174.61919141,0.00038163,30]
[425145486,1781548304000,-155.04060098,0.00038163,48]
[425145515,1781548304000,-151.0,0.00038163,51]
[425145516,1781548304000,-156.587,0.00038163,50]
[425145543,1781548304000,-151.0,0.00038163,30]
[425145514,1781548304000,-151.0,0.00038163,49]
[425145490,1781548304000,-200.0,0.00038163,50]
[425145489,1781548304000,-500.0,0.00038163,51]
[425145480,1781548304000,-155.04060098,0.00038163,49]
[425145484,1781548304000,-151.0,0.00038163,51]
[425145488,1781548304000,-500.0,0.00038163,50]
[425145481,1781548304000,-200.0,0.00038163,51]
[425145483,1781548304000,-520.0,0.00038163,51]
[425145482,1781548304000,-500.0,0.00038163,51]
[425145513,1781548304000,-537.6845,0.00038163,49]
[425145493,1781548304000,-151.0,0.00038163,50]
[425145503,1781548304000,-151.0,0.00038163,51]
[425145494,1781548304000,-151.0,0.00038163,51]
[425145491,1781548304000,-151.0,0.00038163,51]
[425145502,1781548304000,-155.04060098,0.00038163,30]
[425145492,1781548304000,-539.24,0.00038163,50]
[425145495,1781548304000,-500.0,0.00038163,50]
[425145505,1781548304000,-559.19188,0.00038163,49]
[425145498,1781548304000,-200.0,0.00038163,49]
[425145511,1781548304000,-200.0,0.00038163,48]
[425145512,1781548304000,-162.380719,0.00038163,49]
[425145509,1781548304000,-500.0,0.00038163,48]
[425145506,1781548304000,-151.0,0.00038163,49]
[425145508,1781548304000,-500.0,0.00038163,49]
[425145504,1781548304000,-151.0,0.00038163,50]
[425145499,1781548304000,-518.5,0.00038163,50]
[425145501,1781548304000,-151.0,0.00038163,51]
[425145497,1781548304000,-500.0,0.00038163,49]
[425145500,1781548304000,-156.587,0.00038163,50]
[425145496,1781548304000,-151.0,0.00038163,51]
[425145507,1781548304000,-156.587,0.00038163,50]
[425145590,1781548305000,-216.51,0.00038312,60]
[425145593,1781548305000,-1013.98215756,0.00038329,120]
[425145592,1781548305000,-282.62709094,0.00038329,120]
[425145589,1781548305000,-284871.5714,0.00038308,7]
[425145584,1781548305000,-32417.56764844,0.0003829,10]
[425145571,1781548305000,-150.0,0.0003825,6]
[425145582,1781548305000,-227.14777751,0.00038288,60]
[425145591,1781548305000,-163.19,0.00038319,60]
[425145570,1781548305000,-2000.0,0.00038247,30]
[425145574,1781548305000,-30420.20226204,0.0003826,60]
[425145573,1781548305000,-182.0,0.0003826,120]
[425145583,1781548305000,-25000.0,0.0003829,5]
[425145585,1781548305000,-165.59,0.000383,120]
[425145601,1781548305000,-160.86,0.00038356,2]
[425145587,1781548305000,-1534.0780574,0.000383,120]
[425145588,1781548305000,-1132.77875939,0.000383,120]
[425145595,1781548305000,-500.0,0.0003835,30]
[425145594,1781548305000,-150.0,0.00038339,120]
[425145606,1781548305000,-160.86,0.00038356,2]
[425145598,1781548305000,-1126.0,0.00038356,5]
[425145605,1781548305000,-160.86,0.00038356,2]
[425145596,1781548305000,-150.0,0.00038355,120]
[425145597,1781548305000,-157.9930764,0.00038355,120]
[425145599,1781548305000,-160.86,0.00038356,2]
[425145604,1781548305000,-160.86,0.00038356,2]
[425145603,1781548305000,-160.86,0.00038356,2]
[425145575,1781548305000,-216.51,0.00038262,60]
[425145586,1781548305000,-185.98,0.000383,120]
[425145576,1781548305000,-334.12,0.00038267,60]
[425145559,1781548305000,-163.19,0.00038219,60]
[425145579,1781548305000,-1000.67,0.00038276,60]
[425145600,1781548305000,-160.86,0.00038356,2]
[425145554,1781548305000,-327.29,0.00038198,2]
[425145555,1781548305000,-400000.0,0.000382,2]
[425145547,1781548305000,-151.0,0.00038163,30]
[425145546,1781548305000,-152.0,0.00038163,49]
[425145556,1781548305000,-7500.0,0.000382,7]
[425145551,1781548305000,-334.12,0.00038167,60]
[425145553,1781548305000,-654.58,0.00038198,7]
[425145548,1781548305000,-174.61919141,0.00038163,30]
[425145550,1781548305000,-152.0,0.00038163,30]
[425145549,1781548305000,-152.0,0.00038163,48]
[425145552,1781548305000,-163.19,0.00038169,60]
[425145557,1781548305000,-216.51,0.00038212,60]
[425145572,1781548305000,-10000.0,0.0003826,14]
[425145558,1781548305000,-334.12,0.00038217,60]
[425145567,1781548305000,-187.0,0.00038227,120]
[425145566,1781548305000,-197.0,0.00038227,120]
[425145561,1781548305000,-151.0,0.00038227,2]
[425145565,1781548305000,-153.0,0.00038227,120]
[425145560,1781548305000,-587.03642245,0.00038223,60]
[425145562,1781548305000,-745.65223615,0.00038227,2]
[425145563,1781548305000,-896.77747134,0.00038227,2]
[425145564,1781548305000,-247.0,0.00038227,120]
[425145580,1781548305000,-278.02,0.00038276,60]
[425145578,1781548305000,-609.21,0.00038276,60]
[425145569,1781548305000,-165.0,0.0003824,120]
[425145577,1781548305000,-163.19,0.00038269,60]
[425145581,1781548305000,-241.411283,0.00038281,120]
[425145568,1781548305000,-163.0,0.0003824,120]
[425145602,1781548305000,-160.86,0.00038356,2]
[425145545,1781548305000,-168.3888056,0.00038163,48]
[425145612,1781548305000,-500.0,0.00038356,60]
[425145640,1781548305000,-323.817608,0.00038356,30]
[425145642,1781548305000,-323.817608,0.00038356,30]
[425145638,1781548305000,-165.67473738,0.00038356,120]
[425145645,1781548305000,-323.817608,0.00038356,30]
[425145655,1781548305000,-323.817608,0.00038356,30]
[425145644,1781548305000,-323.817608,0.00038356,30]
[425145646,1781548305000,-323.817608,0.00038356,30]
[425145649,1781548305000,-323.817608,0.00038356,30]
[425145651,1781548305000,-323.817608,0.00038356,30]
[425145647,1781548305000,-323.817608,0.00038356,30]
[425145654,1781548305000,-323.817608,0.00038356,30]
[425145648,1781548305000,-323.817608,0.00038356,30]
[425145653,1781548305000,-323.817608,0.00038356,30]
[425145650,1781548305000,-323.817608,0.00038356,30]
[425145652,1781548305000,-323.817608,0.00038356,30]
[425145656,1781548305000,-323.817608,0.00038356,30]
[425145663,1781548305000,-469.8,0.00038356,30]
[425145658,1781548305000,-323.817608,0.00038356,30]
[425145659,1781548305000,-323.817615,0.00038356,30]
[425145657,1781548305000,-323.817608,0.00038356,30]
[425145660,1781548305000,-500.0,0.00038356,120]
[425145664,1781548305000,-469.8,0.00038356,30]
[425145667,1781548305000,-469.8,0.00038356,30]
[425145662,1781548305000,-469.8,0.00038356,30]
[425145665,1781548305000,-469.8,0.00038356,30]
[425145668,1781548305000,-469.8,0.00038356,30]
[425145666,1781548305000,-469.8,0.00038356,30]
[425145641,1781548305000,-323.817608,0.00038356,30]
[425145636,1781548305000,-500.0,0.00038356,120]
[425145661,1781548305000,-272.571273,0.00038356,120]
[425145643,1781548305000,-323.817608,0.00038356,30]
[425145639,1781548305000,-500.0,0.00038356,120]
[425145609,1781548305000,-160.86,0.00038356,2]
[425145613,1781548305000,-500.0,0.00038356,60]
[425145611,1781548305000,-307.73735391,0.00038356,60]
[425145608,1781548305000,-160.86,0.00038356,2]
[425145614,1781548305000,-534.99513822,0.00038356,60]
[425145610,1781548305000,-150.0,0.00038356,30]
[425145617,1781548305000,-879.0,0.00038356,30]
[425145618,1781548305000,-879.0,0.00038356,30]
[425145619,1781548305000,-879.0,0.00038356,30]
[425145615,1781548305000,-1000.0,0.00038356,120]
[425145616,1781548305000,-892.0,0.00038356,30]
[425145621,1781548305000,-2110.0,0.00038356,2]
[425145631,1781548305000,-500.0,0.00038356,120]
[425145607,1781548305000,-160.86,0.00038356,2]
[425145623,1781548305000,-500.0,0.00038356,120]
[425145620,1781548305000,-879.0,0.00038356,30]
[425145633,1781548305000,-500.0,0.00038356,120]
[425145637,1781548305000,-553.62512431,0.00038356,120]
[425145632,1781548305000,-500.0,0.00038356,120]
[425145630,1781548305000,-500.0,0.00038356,120]
[425145629,1781548305000,-500.0,0.00038356,120]
[425145635,1781548305000,-500.0,0.00038356,120]
[425145628,1781548305000,-500.0,0.00038356,120]
[425145624,1781548305000,-500.0,0.00038356,120]
[425145626,1781548305000,-500.0,0.00038356,120]
[425145625,1781548305000,-500.0,0.00038356,120]
[425145634,1781548305000,-500.0,0.00038356,120]
[425145622,1781548305000,-169.85301566,0.00038356,120]
[425145627,1781548305000,-500.0,0.00038356,120]
[425145697,1781548306000,-616.74,0.00038356,30]
[425145699,1781548306000,-216.51,0.00038362,120]
[425145701,1781548306000,-163.28,0.00038369,120]
[425145700,1781548306000,-279.12984725,0.00038367,34]
[425145704,1781548306000,-280.0,0.0003838,120]
[425145702,1781548306000,-150.0,0.00038369,120]
[425145707,1781548306000,-30000.0,0.000384,120]
[425145706,1781548306000,-422.01,0.00038392,120]
[425145715,1781548306000,-278.41062585,0.000384,120]
[425145709,1781548306000,-1182174.8216019,0.000384,35]
[425145703,1781548306000,-587.03642245,0.00038375,60]
[425145714,1781548306000,-528.81,0.000384,120]
[425145717,1781548306000,-600.0,0.00038407,120]
[425145716,1781548306000,-1199.56277473,0.00038407,120]
[425145710,1781548306000,-5000.0,0.000384,120]
[425145711,1781548306000,-20000.0,0.000384,14]
[425145713,1781548306000,-378.59,0.000384,120]
[425145696,1781548306000,-863.44,0.00038356,30]
[425145712,1781548306000,-359.45296687,0.000384,30]
[425145719,1781548306000,-600.0,0.00038407,120]
[425145718,1781548306000,-600.0,0.00038407,120]
[425145720,1781548306000,-600.0,0.00038407,120]
[425145721,1781548306000,-600.0,0.00038407,120]
[425145724,1781548306000,-600.0,0.00038407,120]
[425145723,1781548306000,-600.0,0.00038407,120]
[425145708,1781548306000,-8164.66915123,0.000384,120]
[425145698,1781548306000,-374.21,0.00038356,50]
[425145683,1781548306000,-806.36136804,0.00038356,120]
[425145695,1781548306000,-986.79,0.00038356,30]
[425145726,1781548306000,-500.0,0.00038407,120]
[425145670,1781548306000,-469.8,0.00038356,30]
[425145679,1781548306000,-469.8,0.00038356,30]
[425145678,1781548306000,-469.8,0.00038356,30]
[425145669,1781548306000,-469.8,0.00038356,30]
[425145680,1781548306000,-469.8,0.00038356,30]
[425145672,1781548306000,-469.8,0.00038356,30]
[425145674,1781548306000,-469.8,0.00038356,30]
[425145671,1781548306000,-469.8,0.00038356,30]
[425145675,1781548306000,-469.8,0.00038356,30]
[425145676,1781548306000,-469.8,0.00038356,30]
[425145673,1781548306000,-469.8,0.00038356,30]
[425145677,1781548306000,-469.8,0.00038356,30]
[425145682,1781548306000,-614.08,0.00038356,120]
[425145693,1781548306000,-551.29,0.00038356,120]
[425145692,1781548306000,-630.05,0.00038356,120]
[425145687,1781548306000,-806.36136808,0.00038356,120]
[425145685,1781548306000,-806.36136804,0.00038356,120]
[425145684,1781548306000,-806.36136804,0.00038356,120]
[425145688,1781548306000,-177.55462865,0.00038356,15]
[425145691,1781548306000,-453.0,0.00038356,30]
[425145686,1781548306000,-806.36136804,0.00038356,120]
[425145689,1781548306000,-724.8,0.00038356,30]
[425145690,1781548306000,-634.2,0.00038356,30]
[425145705,1781548306000,-281.34,0.00038392,30]
[425145694,1781548306000,-393.78,0.00038356,120]
[425145681,1781548306000,-469.8,0.00038356,30]
[425145728,1781548306000,-500.0,0.00038407,120]
[425145727,1781548306000,-500.0,0.00038407,120]
[425145755,1781548306000,-500.0,0.00038407,120]
[425145754,1781548306000,-500.0,0.00038407,120]
[425145760,1781548306000,-500.0,0.00038407,120]
[425145762,1781548306000,-500.0,0.00038407,120]
[425145763,1781548306000,-500.0,0.00038407,120]
[425145766,1781548306000,-500.0,0.00038407,120]
[425145765,1781548306000,-500.0,0.00038407,120]
[425145764,1781548306000,-500.0,0.00038407,120]
[425145768,1781548306000,-500.0,0.00038407,120]
[425145767,1781548306000,-500.0,0.00038407,120]
[425145761,1781548306000,-500.0,0.00038407,120]
[425145771,1781548306000,-500.0,0.00038407,120]
[425145756,1781548306000,-500.0,0.00038407,120]
[425145769,1781548306000,-500.0,0.00038407,120]
[425145774,1781548306000,-500.0,0.00038407,120]
[425145773,1781548306000,-500.0,0.00038407,120]
[425145775,1781548306000,-500.0,0.00038407,120]
[425145776,1781548306000,-500.0,0.00038407,120]
[425145778,1781548306000,-500.0,0.00038407,120]
[425145777,1781548306000,-500.0,0.00038407,120]
[425145779,1781548306000,-500.0,0.00038407,120]
[425145781,1781548306000,-463.80705691,0.00038407,120]
[425145783,1781548306000,-500.05860464,0.00038407,120]
[425145780,1781548306000,-500.0,0.00038407,120]
[425145782,1781548306000,-500.0,0.00038407,120]
[425145725,1781548306000,-607.44212711,0.00038407,120]
[425145772,1781548306000,-500.0,0.00038407,120]
[425145752,1781548306000,-500.0,0.00038407,120]
[425145770,1781548306000,-500.0,0.00038407,120]
[425145751,1781548306000,-500.0,0.00038407,120]
[425145722,1781548306000,-600.0,0.00038407,120]
[425145750,1781548306000,-500.0,0.00038407,120]
[425145729,1781548306000,-500.0,0.00038407,120]
[425145731,1781548306000,-500.0,0.00038407,120]
[425145732,1781548306000,-500.0,0.00038407,120]
[425145733,1781548306000,-500.0,0.00038407,120]